Cogmind - Beta 17 @@@ ROGUE MODE // 2026.06.29 @ 11:37:57 Player: star Result: Destroyed by CS-AZL(R) with Subdweller Beam Cannon Performance ------------- Evolutions (0) 0 Regions Visited (3) 600 Robots Destroyed (18) 90 Value Destroyed (460) 460 Prototype IDs (0) 0 Alien Tech Used (0) 0 Bonus (-4) -4 TOTAL SCORE: 1146 Bonus ------- Friendly Fire -4 Cogmind --------- Core Integrity 0/250 Matter 300/300 Energy 61/100 System Corruption 0% Temperature Cool (30) Movement Core (450) Ox8 Location -10/Subcaves Parts ------- > --- POWER (1) -------- (None) > --- PROPULSION (2) --- (None) > --- UTILITY (2) ------ Large Storage Unit Improved Targeting Computer > --- WEAPON (2) ------- Spread Laser Spread Laser > --- INVENTORY (15) --- Light Ion Engine Light Ion Engine Improved Targeting Computer Improved Targeting Computer Medium Laser Medium Laser Medium Laser Spread Laser Spread Laser Grenade Launcher Grenade Launcher Grenade Launcher Subdweller Shrapnel Launcher Multitool Makeshift Hammer Peak State ------------ > --- POWER ------------ Light Ion Engine > --- PROPULSION ------- Light Treads Light Treads > --- UTILITY ---------- Large Storage Unit Improved Targeting Computer > --- WEAPON ----------- Spread Laser Makeshift Hammer > --- INVENTORY -------- Light Ion Engine Light Ion Engine Improved Targeting Computer Improved Targeting Computer Medium Laser Medium Laser Medium Laser Spread Laser Spread Laser Spread Laser Grenade Launcher Grenade Launcher Grenade Launcher Subdweller Shrapnel Launcher [Rating: 14] Favorites ----------- Power Light Ion Engine Engine Light Ion Engine Propulsion Light Treads Treads Light Treads Leg Aluminum Leg Wheel Wheel Utility Large Storage Unit Storage Large Storage Unit Processor Improved Targeting Computer Weapon Spread Laser Energy Gun Spread Laser Launcher Grenade Launcher Special Weapon Multitool Impact Weapon Makeshift Hammer Build | -11 -10 -10 -10 ------- Run | Yrd Mat Min Sub Slots Evolved . | . . . . Power . | . . . . Propulsion . | . . . . Utility . | . . . . Weapon . | . . . . Parts Attached 20 | 8 7 . 5 Power 1 | 1 . . . Engine 1 | 1 . . . Core . | . . . . Reactor . | . . . . Propulsion 6 | 4 2 . . Treads 2 | . 2 . . Leg 2 | 2 . . . Wheel 2 | 2 . . . Hover . | . . . . Flight . | . . . . Utility 3 | 1 2 . . Device . | . . . . Storage 2 | 1 1 . . Processor 1 | . 1 . . Hackware . | . . . . Protection . | . . . . Artifact . | . . . . Weapon 10 | 2 3 . 5 Energy Gun 5 | 2 2 . 1 Energy Cannon . | . . . . Ballistic Gun . | . . . . Ballistic Cannon . | . . . . Launcher 3 | . 1 . 2 Special Weapon 1 | . . . 1 Impact Weapon 1 | . . . 1 Slashing Weapon . | . . . . Piercing Weapon . | . . . . Special Melee Weapon . | . . . . Unidentified Prototypes . | . . . . Parts Lost 3 | . . . 3 Power 1 | . . . 1 Propulsion 2 | . . . 2 Utility . | . . . . Weapon . | . . . . Highest Loss Streak 2 | . . . 2 To Critical Strikes . | . . . . Average Backups 11 | 1 8 12 13 Power 1 | . 1 2 2 Propulsion . | . . . . Utility 1 | . . 2 2 Weapon 7 | . 5 8 9 Tool/Special . | . . . . Unused Backups 7 | . . . 7 Power 2 | . . . 2 Propulsion . | . . . . Utility 2 | . . . 2 Weapon 3 | . . . 3 Tool/Special . | . . . . Average Slot Usage (%) 96 | . 95 100 94 Engine 13 | . 14 14 13 Treads 20 | . 7 28 22 Leg 5 | . 20 . . Storage 14 | . 16 14 14 Processor 12 | . 7 14 14 Energy Gun 25 | . 27 28 22 Launcher 1 | . . . 2 Impact Weapon 1 | . . . 3 Peak Build Rating 14 | 6 11 12 14 Average Rating 10 | 4 8 11 11 On Entrance 7 | . 6 11 12 Avg Prop Armor Cover (%) . | . . . . Naked Turns . | . . . . Heaviest Build 34 | 12 34 29 29 Greatest Support 40 | 20 40 40 40 Greatest Overweight (x) 1 | . 1 . 1 Average Overweight (x) . | . . . . Largest Inventory Capacity 15 | 8 15 15 15 Average Capacity 13 | 6 12 15 15 Most Carried 15 | 2 12 13 15 Average Carried 11 | 1 8 12 13 Final Capacity 15 | 8 15 15 15 Final Carried 15 | 2 12 13 15 Class Distribution -------------------- 100% | Mutant Dominant Class ---------------- Mutant | -10/Materials Mutant | -10/Mines Mutant | -10/Subcaves Resources | -11 -10 -10 -10 ----------- Run | Yrd Mat Min Sub Matter Collected 610 | 223 100 107 180 Remotely . | . . . . Salvage Created 443 | . 195 89 159 Parts 34 | . 16 10 8 Haulers Intercepted 2 | . 2 . . Recyclers Shooed . | . . . . Parts Field Recycled . | . . . . Retrieved Matter . | . . . . Parts Self-Destructed 2 | . . . 2 Prevented . | . . . . Parts Restored . | . . . . Kills | -11 -10 -10 -10 ------- Run | Yrd Mat Min Sub Combat Hostiles Destroyed 16 | . 6 5 5 Guns 8 | . 1 5 2 AOE 8 | . 5 . 3 Classes Destroyed 4 | . 3 . 1 Hauler 2 | . 2 . . Swarmer 6 | . 3 3 . Grunt 5 | . 3 2 . Subdweller 5 | . . . 5 Best Kill Streak 5 | . 5 3 3 Combat Bots Only 5 | . 5 3 3 Max Kills in Single Turn 2 | . 2 1 2 Gunslinging . | . . . . Exploded 2 | . 2 . 2 Melee . | . . . . Uniques/NPCs Destroyed . | . . . . Combat | -11 -10 -10 -10 -------- Run | Yrd Mat Min Sub Hostile Shots Fired 64 | . 17 17 30 Missed 17 | . 5 6 6 Hits 47 | . 12 11 24 Projectile 47 | . 12 11 24 Critical Strikes 1 | . . . 1 Damage Taken 849 | . 132 120 597 Core 267 | . 49 7 211 Absorbed by Shields . | . . . . Core Remaining (%) 100 | 100 . . . Volleys Fired 32 | . 15 8 9 Largest 2 | . 2 2 2 Hottest 130 | . 130 130 130 Shots Fired 58 | . 24 16 18 Gun 48 | . 18 16 14 Cannon . | . . . . Launcher 10 | . 6 . 4 Special . | . . . . Kinetic . | . . . . Thermal 48 | . 18 16 14 Explosive 10 | . 6 . 4 Electromagnetic . | . . . . Robot Hit Streak 17 | . 10 16 17 Robot Miss Streak 4 | . 3 4 1 Penetration Max . | . . . . Secondary Targets 3 | . . 2 1 Max Gunslinging Chain 1 | . . 1 1 Shots Hit Robots 54 | . 17 15 22 Core Hits 58 | . 15 21 22 Critical Kills . | . . . . Critical Parts Destroyed . | . . . . Critical Strikes 1 | . . . 1 Smash 1 | . . . 1 Melee Attacks 16 | . . . 16 Impact 16 | . . . 16 Slashing . | . . . . Piercing . | . . . . Sneak Attacks 1 | . . . 1 Combat Hostiles . | . . . . Follow-up Attacks . | . . . . Damage Inflicted 1308 | . 509 211 588 Guns 540 | . 163 211 166 Cannons . | . . . . Explosions 553 | . 346 . 207 Melee 215 | . . . 215 Ramming . | . . . . Kinetic . | . . . . Thermal 540 | . 163 211 166 Explosive 553 | . 346 . 207 Electromagnetic . | . . . . Impact 215 | . . . 215 Slashing . | . . . . Piercing . | . . . . Highest Corruption . | . . . . Average Corruption . | . . . . Corruption Purged . | . . . . Corruption Blocked . | . . . . Overload Shots . | . . . . Overflow Damage . | . . . . Projectiles . | . . . . Explosions . | . . . . Melee . | . . . . Knockbacks . | . . . . Impact . | . . . . Kinetic . | . . . . Secondary . | . . . . Self-Inflicted Damage 51 | . . . 51 Shots 2 | . . . 2 Rammed . | . . . . Targets Rammed . | . . . . Kicked . | . . . . Crushed . | . . . . Highest Temperature 300 | . 207 300 27 Average Temperature 87 | . 77 122 15 Received Heat Transfer 147 | . 63 42 42 Siege Activations . | . . . . Martial Activations . | . . . . Shielding Activations . | . . . . Robots Disrupted . | . . . . Combat Hostiles . | . . . . Robots Corrupted . | . . . . Combat Hostiles . | . . . . Parts Fried . | . . . . Impact Corruptions . | . . . . Robots Melted . | . . . . Combat Hostiles . | . . . . Parts Melted 1 | . 1 . . Heat Transferred 809 | . 354 255 200 Parts Sabotaged . | . . . . Parts Stolen . | . . . . Parts Stripped . | . . . . Power Chain Reactions . | . . . . Alert | -11 -10 -10 -10 ------- Run | Yrd Mat Min Sub Maximum Alert Level . | . . . . Low Security (%) 100 | 100 100 100 . Level 1 . | . . . . Level 2 . | . . . . Level 3 . | . . . . Level 4 . | . . . . Level 5 . | . . . . High Security . | . . . . Max Security . | . . . . Peak Influence 136 | . 136 60 . Initial 7 | . . 7 . Average 39 | . 73 15 . Influence Increases 300 | . 180 120 . Destroy 0b10 Robot/C 220 | . 120 100 . Destroy 0b10 Robot/NC 10 | . 10 . . Destroy Leader 54 | . 34 20 . Destroy Structure 16 | . 16 . . Influence Decreases 300 | . 160 140 . Entered New Map 13 | . . 13 . Time Decay 287 | . 160 127 . Squads Dispatched 1 | . 1 . . Investigation . | . . . . Extermination . | . . . . Reinforcement 1 | . 1 . . Assault . | . . . . Garrison . | . . . . Intercept . | . . . . Searches Triggered . | . . . . Construction Impeded . | . . . . Haulers Reinforced . | . . . . Active Scanning Responses . | . . . . Cargo Convoy Interrupts . | . . . . Stealth | -11 -10 -10 -10 --------- Run | Yrd Mat Min Sub Distress Signals 1 | . 1 . . Communications Jammed . | . . . . Distress Signals . | . . . . Times Spotted 18 | . 7 5 6 Peak Tracking Total 7 | . 7 3 3 Tactical Retreats . | . . . . Traps | -11 -10 -10 -10 ------- Run | Yrd Mat Min Sub Traps Triggered 1 | . 1 . . Indirectly . | . . . . Trap Hack Attempts . | . . . . Triggered . | . . . . Disarmed . | . . . . Reprogrammed . | . . . . Reused . | . . . . Traps Extracted . | . . . . Installed . | . . . . Triggered . | . . . . Machines | -11 -10 -10 -10 ---------- Run | Yrd Mat Min Sub Machines Disabled . | . . . . Max in Single Turn . | . . . . Machines Repaired . | . . . . Machines Dismantled . | . . . . Machines Sabotaged . | . . . . Overloaded Fab Kills . | . . . . Hacking | -11 -10 -10 -10 --------- Run | Yrd Mat Min Sub Machines Accessed . | . . . . Terminals . | . . . . Fabricators . | . . . . Repair Stations . | . . . . Recycling Units . | . . . . Scanalyzers . | . . . . Garrison Access . | . . . . Total Hacks . | . . . . Successful . | . . . . Failed . | . . . . Catastrophic . | . . . . Database Lockouts . | . . . . Manual . | . . . . Terminals . | . . . . Fabricators . | . . . . Repair Stations . | . . . . Recycling Units . | . . . . Scanalyzers . | . . . . Garrison Access . | . . . . Terminal Hacks . | . . . . Fabricator Hacks . | . . . . Repair Station Hacks . | . . . . Recycling Unit Hacks . | . . . . Scanalyzer . | . . . . Garrison Access Hacks . | . . . . Unauthorized Hacks . | . . . . Terminals . | . . . . Fabricators . | . . . . Repair Stations . | . . . . Recycling Units . | . . . . Scanalyzers . | . . . . Garrison Access . | . . . . Data Cores Recovered . | . . . . Used . | . . . . Hacking Detections . | . . . . Full Trace Events . | . . . . Feedback Events . | . . . . Feedback Blocked . | . . . . Robot Schematics Acquired . | . . . . Robots Built . | . . . . Authchips . | . . . . Time . | . . . . Total Robot Build Rating . | . . . . Part Schematics Acquired . | . . . . Parts Built . | . . . . Authchips . | . . . . Time . | . . . . Total Part Build Rating . | . . . . Part Studies Acquired . | . . . . Parts Repaired . | . . . . Time . | . . . . Parts Recycled . | . . . . Recycled Matter . | . . . . Retrieved Matter . | . . . . Retrieved Components . | . . . . Parts Scanalyzed . | . . . . Part Schematics Acquired . | . . . . Parts Damaged . | . . . . Bothacking | -11 -10 -10 -10 ------------ Run | Yrd Mat Min Sub Used RIF Installer . | . . . . Robots Hacked . | . . . . Non-combat . | . . . . Combat . | . . . . Robot Hacks Applied . | . . . . Relay Couplers Released . | . . . . Fabnet Peak Effective % . | . . . . Robots Rewired . | . . . . Allies Hacked . | . . . . Hacks Repelled . | . . . . Allies | -11 -10 -10 -10 -------- Run | Yrd Mat Min Sub Total Allies . | . . . . Largest Group . | . . . . Highest-Rated Group . | . . . . Highest-Rated Ally . | . . . . Total Orders . | . . . . Ally Attacks . | . . . . Total Damage . | . . . . Kills . | . . . . Allies Corrupted . | . . . . Allies Melted . | . . . . Intel | -11 -10 -10 -10 ------- Run | Yrd Mat Min Sub Active Infowar (turns) . | . . . . Robot Analysis Total . | . . . . Derelict Logs Recovered 2 | . . 1 1 Drone Launches . | . . . . Drone Recoveries . | . . . . Exploration | -11 -10 -10 -10 ------------- Run | Yrd Mat Min Sub Turns Passed 1460 | 90 376 404 590 Spaces Moved 719 | 65 190 196 268 Core 1 | 1 . . . Treads 530 | . 66 196 268 Legs 184 | 60 124 . . Wheels 4 | 4 . . . Hover . | . . . . Flight . | . . . . Fastest Speed 50 | 50 120 160 160 Average Speed 163 | 116 153 160 183 Slowest Speed 240 | 120 240 160 240 Overloaded Moves . | . . . . Propulsion Burnouts . | . . . . Robots Hopped . | . . . . Potential Cave-ins . | . . . . Cave-ins Triggered . | . . . . Exploration Rate (%) 27 | 4 38 48 20 Regions Visited 3 Branch Regions 2 Pre-discovered Areas 1 | . . 1 . Known Exits Taken 1 | . . 1 . Unknown Exits Taken 2 | 1 1 . . Scrap Searched 4 | . . 1 3 Spaces Dug . | . . . . Terrain Destroyed 42 | . 29 . 13 Melee . | . . . . Projectile . | . . . . AOE 42 | . 29 . 13 Terrain Rammed . | . . . . Walls Destroyed . | . . . . Machines Disabled . | . . . . Actions | -11 -10 -10 -10 --------- Run | Yrd Mat Min Sub Total 919 | 76 246 271 326 Wait 109 | . 25 67 17 Move 716 | 64 189 195 268 Hop . | . . . . Pick Up 15 | 4 8 1 2 Fast Attach 6 | 4 2 . . Attach 2 | 2 . . . Detach . | . . . . Swap 23 | 2 7 . 14 Drop . | . . . . Fire 32 | . 15 8 9 Melee 16 | . . . 16 Ram . | . . . . Kick . | . . . . Crush . | . . . . Escape Stasis . | . . . . Rewire . | . . . . Trap . | . . . . Miscellaneous . | . . . . Route ------- -11/Scrapyard -10/Materials -10/Mines -10/Subcaves History --------- Turn | Location | Event 29 | -11/Scrapyard | Discovered new exit (range 15) 91 | -11/Scrapyard | Entered Materials 317 | -10/Materials | Build established: Mutant 397 | -10/Materials | Discovered new exit (range 9) 467 | -10/Materials | Entered Mines 561 | -10/Mines | Learned location of Storage (-9) 721 | -10/Mines | A weapon hastily lodged in a ceiling crevice suddenly fell to the ground 785 | -10/Mines | Identified exit to Subcaves 871 | -10/Mines | Entered Subcaves 872 | -10/Subcaves | Approached by a straggling Scientist 1074 | -10/Subcaves | A swath of the cavern ceiling suddenly collapsed 1229 | -10/Subcaves | Disturbed a concealed Subdweller 1232 | -10/Subcaves | Disturbed a concealed Subdweller 1248 | -10/Subcaves | Core integrity fell below 50% 1356 | -10/Subcaves | Learned 8 Materials zone layouts 1454 | -10/Subcaves | Core integrity fell below 20% 1461 | -10/Subcaves | Destroyed by CS-AZL(R) with Subdweller Beam Cannon Last Messages --------------- 01239_ XO-D5N(R) suffers critical hit (Smash). 01244_ Lgt. Treads destroyed. 01249_ XO-D5N(R) destroyed. 01249_ Switching to secondary target: HQ-W4J(R). 01254_ HQ-W4J(R) affixes Scrap Shield Fragment to Scrap Shield. 01260_ Acquired 2 matter. 01263_ HQ-W4J(R) destroyed. 01278_ Acquired Multitool. OF-YDK(c): "I think it's somewhere southwest of here" 01279_ Acquired 8 matter. 01297_ Acquired 10 matter. 01325_ Subatomizers dissect the Sub. Optics. OF-YDK(c): "I think it's somewhere southwest of here" 01356_ Acquired derelict log, extracted data. Data stored: Materials zone layouts (x8). OF-YDK(c): "I think it's somewhere southwest of here" 01453_ Lgt. Treads destroyed. 01455_ Lgt. Ion Engine destroyed. 01459_ OF-YDK(c) destroyed. Map ----- +----------------------------------------------------+ | | | | | | | | | | | ?????????????????????????????????????????????????? | | ?????????????????????????????????????????????????? | | ?????????????????????????????????????????????????? | | ?????????????????????????????????????????????????? | | ?????????????????????????????????????????????????? | | ?????????????????????????????????????????????????? | | ?????????????????????????????????????????????????? | | ?????????????????????????????????????????????????? | | ?????????????????????????????????????????????????? | | ?????????????????????????????????????????????????? | | ?????????????????????????????????????????????????? | | ?????????????????????????????????????????????????? | | ?????????????????????????????????? ??????????????? | | ?????????????????????????????????< ??????????????? | | ??????????????###??????????####? ???????????????? | | ????###?####### #####?????? # ????????????????? | | ?#### ### ## ##????# ??????????????????? | | ## ## ##???< ##??????????????????? | | ## #### <###????????????????? | | # ## ## R ##???????????????? | | ## #### ### @ #????????????? | | ####??####?# = ##???????????????? | | ??????????# ## !%* ???????????? | | ???????# #### ! ### ?????????? | | ???????# #??## ####????## ?????????? | | ???????# #???### ##???????????##??????????? | | ???????# ??????######????????????????????????? | | ???????# #????????????????????????????????????? | | ???????# #?????????????????????????????????????? | | ???????# ##??????????????????????????????????????? | | ???????##????????????????????????????????????????? | | ?????????????????????????????????????????????????? | | ?????????????????????????????????????????????????? | | ?????????????????????????????????????????????????? | | ?????????????????????????????????????????????????? | | ?????????????????????????????????????????????????? | | ?????????????????????????????????????????????????? | | ?????????????????????????????????????????????????? | | ?????????????????????????????????????????????????? | | ?????????????????????????????????????????????????? | | ?????????????????????????????????????????????????? | | ?????????????????????????????????????????????????? | | ?????????????????????????????????????????????????? | | ?????????????????????????????????????????????????? | | ??????####???????????????????????????????????????? | +----------------------------------------------------+ Best States ------------- Heat Dissipation 25 Energy Generation 10 Energy Capacity 125 Matter Stores 300 Matter Capacity 300 Sight Range 16 Terrain Scan Density 10 Evasion (%) 55 Targeting Accuracy 6 Recoil Reduction 2 Item Schematics ----------------- None Robot Schematics ------------------ None Fabricated ------------ Nothing Repaired ---------- Nothing Studied --------- None Alien Tech Used ----------------- None Achievements -------------- None Challenges ------------ None Game ------ Seed PhysicsAuthchipPit Manual? 0 Play Time 00:09:04 Cumulative 216.0 hours Start 2026.06.29 @ 11:31:28 End 2026.06.29 @ 11:37:57 Sessions 1 Manual Loads 0 Difficulty Rogue Special Mode None Game No. 362 Rogue 362 Adventurer 0 Explorer 0 Win Type - Total 2 Types 2/0/0/0/0/0/0/0/0/0 Lore% 63 Gallery% 61 Achievement% 47 Wizard Run 0 Options --------- Layout 2 ASCII 0 Keyboard 1 Movement Numpad Keybinds 0 Fullscreen 1 Font 20/SmallcapsGlow Map View 64x51 Zoom Use 0% Tactical HUD 1 Map Filters NONE Filters NONE Steam 1 RUN: 714f1beb-e416-424a-b777-e1374ce65c33